Workbook

Sheet Sheet1
A1: Σχεδιασμός σε κάμψη μετωπικών οδοντωτών τροχών κατά AGMA | H1: Σχεδιασμός σε επιφανειακή πίεση μετωπικών οδοντωτών τροχών κατά AGMA
A3: Δεδομένα κοινά και για τους δυο οδοντωτούς τροχούς | H3: Δεδομένα κοινά και για τους δυο οδοντωτούς τροχούς
A4: Σχέση μετάδοσης | C4: i = | D4: 3 | H4: Σχέση μετάδοσης | I4: i = | J4: 3
A5: Ισχύς προς μετάδοση | C5: N = | D5: =D11*(D24/1000)*D26/2/1000 -> 12.4815895 | E5: =D5/0.735 -> 16.98175442 | F5: kW / HP | H5: Ισχύς προς μετάδοση | I5: N = | J5: =J11*J12/1000 -> 4.665642082 | K5: =J5/0.735 -> 6.347812356 | L5: kW / HP
A6: Γωνία εξειλιγμένης | C6: φ = | D6: 20 | F6: μοίρες | H6: Γωνία Εξειλιγμένης | I6: φ = | J6: =D6 -> 20 | L6: μοίρες
A7: Module | C7: m = | D7: 4 | F7: mm | H7: Module | I7: m = | J7: =D7 -> 4 | L7: mm
A8: Τύπος οδόντωσης | C8: Τύπος τροχού | D8: Κανονική οδόντωση | H8: Τύπος οδόντωσης | I8: Τύπος τροχού | J8: =D8 -> Κανονική οδόντωση
A9: Τύπος φορτίου δοντιού | C9: Φορτίο δοντιού | D9: Φορτίο εφαρμοζόμενο στην υψηλότερη θέση επαφής κατά την λειτουργία | H9: Τύπος φορτίου οδόντος | I9: Φορτίο δοντιού | J9: =D9 -> Φορτίο εφαρμοζόμενο στην υψηλότερη θέση επαφής κατά την λειτουργία
A10: Πλάτος τροχού | C10: b = | D10: 50 | F10: mm | H10: Πλάτος τροχού | I10: b = | J10: =D10 -> 50 | L10: mm
A11: Μεταφερόμενη δύναμη | C11: Ft = | D11: 3130 | F11: N | H11: Μεταφερόμενο φορτίο | I11: Ft = | J11: 1170 | L11: N
A12: Γραμμική ταχύτητα | C12: υt = | D12: =PI()*D24*D25/(60000) -> 3.987728275 | F12: m/s | H12: Περιφερειακή ταχύτητα | I12: υt = | J12: =D12 -> 3.987728275 | L12: m/s
A13: Κατηγορία ποιότητας | C13: Qv = | D13: 5 | H13: Συντ. ασφαλείας σε επιφ φθορά | I13: SH = | J13: =SQRT(D17) -> 1.414213562
A14: Συντελεστής υπερφόρτισης | C14: Ko = | D14: 1 | H14: Συντ. υπερφόρτισης | I14: Ko = | J14: =D14 -> 1
A15: Συντελεστής μεγέθους | C15: Ks = | D15: 1 | H15: Συντελεστής μεγέθους | I15: Ks = | J15: 1
A16: Συντελεστής πάχους στεφάνης | C16: KB = | D16: 1 | H16: Κατηγορία ποιότητας τροχών | I16: Qυ = | J16: =D13 -> 5
A17: Συντελεστής ασφαλείας | C17: SF = | D17: 2 | H17: Συντελεστής επιφ. Κατάστασης | I17: Cf = | J17: 1
A18: Συντελεστής διάρκειας ζωής | C18: ΚL = | D18: 0.93 | H18: Συντ. διάρκειας ζωής | I18: ZN = | J18: =2.466*(L18)^(-0.056) -> 0.879008495 | L18: 100000000
A19: Συντελεστής θερμοκρασίας | C19: KT = | D19: 1 | H19: Συντ. θερμοκρασίας | I19: KT = | J19: 1
A20: Συντελεστής αξιοπιστίας | C20: KR = | D20: 1 | H20: Συντ. σξιοπιστίας | I20: KR = | J20: 1
A21: Δεδομένα που ενδεχομένως είναι διαφορετικά για κάθε οδοντωτό τροχό | H21: Δεδομένα που ενδεχομένως είναι διαφορετικά για κάθε οδοντωτό τροχό
D22: Pinion | E22: Τροχός | J22: Pinion | K22: Τροχός
A23: Αριθμός δοντιών | C23: Ni = | D23: 17 | E23: =D23*D4 -> 51 | F23: δόντια | H23: Αριθμός δοντιών | I23: Ni = | J23: =D23 -> 17 | K23: =E23 -> 51 | L23: δόντια
A24: Διάμετρος | C24: d = | D24: =D7*D23 -> 68 | E24: =D7*E23 -> 204 | F24: mm | H24: Αρχική διάμετρος | I24: d = | J24: =J23*J7 -> 68 | K24: =K23*J7 -> 204 | L24: mm
A25: Στροφές ανά λεπτό | C25: n= | D25: 1120 | E25: =D25/D4 -> 373.3333333 | F25: rpm | H25: -1=εσωτ. Οδόντ, 1=εξωτ. Οδόντ. | I25: Τύπος τροχού = | J25: 1 | K25: 1
A26: Γωνιακή ταχύτητα | C26: ω = | D26: =2*PI()*D25/60 -> 117.2861257 | E26: =2*PI()*E25/60 -> 39.09537524 | F26: rad/s | H26: Percent +long/-short | I26: Ύψος κεφαλής | J26: 0 | K26: 0
A27: Στρεπτική ροπή | C27: Mt = N / ω | D27: =1000*D5/D26 -> 106.42 | E27: =1000*D5/E26 -> 319.26 | F27: Nm | H27: Σκληρότητα Brinell | I27: Σκληρότητα | J27: 232 | K27: 232 | L27: BHN
A28: Τύπος υλικού | C28: Υλικό = | D28: Steel HB232 | E28: Steel HB232 | H28: Λόγος Poisson | I28: ν = | J28: 0.3 | K28: 0.3
A29: Ποιότητα υλικού | C29: Ποιότητα = | D29: Ποιότητα 1 | E29: Ποιότητα 1 | H29: Μέτρο Ελαστικότητας | I29: E = | J29: 210000 | K29: 210000 | L29: MPa
H30: Υλικό | I30: Υλικό = | J30: Steel HB232 | K30: Steel HB232
H31: Ποιότητα υλικού | I31: Ποιότητα = | J31: Ποιότητα 1 | K31: Ποιότητα 1
A33: Τιμές εισερχόμενες από τον σχεδιαστή βάσει των ανωτέρω δεδομένων | H33: Τιμές εισερχόμενες από τον σχεδιαστή βάσει των ανωτέρω δεδομένων
A34: Επιτρεπόμενη τάση | C34: Sat = | D34: 220 | E34: 220 | F34: MPa | H34: Επιτρεπόμενες τάσεις | I34: Sac = | J34: =2.2676*J27+204.93 -> 731.0132 | K34: =2.2676*K27+204.93 -> 731.0132 | L34: MPa
A35: Γεωμετρικός συντελεστής | C35: J = | D35: 0.3 | E35: 0.39 | H35: =A37 -> Τιμές υπολογιζόμενες βάσει των ανωτέρω δεδομένων
H36: Γεωμετρικός συντελεστής | I36: I = | J36: =icalc(J24,K24,J25,J26,J6,J7) -> 0.1204382922
A37: Τιμές υπολογιζόμενες βάσει των ανωτέρω δεδομένων | H37: Ελαστικός συντελεστής | I37: Cp = | J37: =SQRT(1/(PI()*((1-J28^2)/J29+(1-K28^2)/K29))) -> 191.6456725 | L37: (MPa)1/2
A38: Δυναμικός συντελεστής | C38: Kυ = | D38: =Kvcalc(D12,D13) -> 1.462888206 | H38: Συντ. λόγου σκληροτήτων | I38: CH = | J38: =chcalc(J27,K27,J23,K23) -> 1 | K38: =chcalc(J27,K27,J23,K23) -> 1
A39: Συντ. διανομής φορτίου | C39: Km = | D39: =Kmcalc(D23,D7,D10) -> 1.340188962 | H39: Δυναμικός συντελεστής | I39: Kυ = | J39: =D38 -> 1.462888206
A40: Αριστερό σκέλος εξίσ. | C40: σt = | D40: =D11/(D7*D10*D35)*(D14*D38*D15*D39*D16) -> 102.2751824 | E40: =D11/(D7*D10*E35)*(D14*D38*D15*D39*D16) -> 78.6732172 | F40: MPa | H40: Συντ. διανομής φορτίου | I40: Km = | J40: =Kmcalc(J23,J7,J10) -> 1.340188962
A41: Δεξιό σκέλος εξίσ. | C41: Sεπ = | D41: =D34*D18/(D17*D19*D20) -> 102.3 | E41: =E34*D18/(D17*D19*D20) -> 102.3 | F41: MPa | H41: Αριστ. Μέρος εξίσωσης | I41: σc = | J41: =J37*SQRT(J11*J14*J39*J40*J17/(J24*J10*J36)) -> 453.5851031 | K41: =J37*SQRT(J11*J14*J39*J40*J17/(K24*J10*J36)) -> 261.8774814 | L41: MPa
H42: Δεξιό μέρος εξίσωσης | I42: Sc επ = | J42: =J34*J18*J38/(J13*J19*J20) -> 454.3633507 | K42: =K34*J18*K38/(J13*J19*J20) -> 454.3633507 | L42: MPa
C43: Κατάσταση | D43: =IF(D40<D41,"ΑΣΦΑΛΕΙΑ","ΑΣΤΟΧΙΑ") -> ΑΣΦΑΛΕΙΑ | E43: =IF(E40<E41,"ΑΣΦΑΛΕΙΑ","ΑΣΤΟΧΙΑ") -> ΑΣΦΑΛΕΙΑ | I43: Κατάσταση | J43: =IF(J41<J42,"ΑΣΦΑΛΕΙΑ","ΑΣΤΟΧΙΑ") -> ΑΣΦΑΛΕΙΑ | K43: =IF(K41<K42,"ΑΣΦΑΛΕΙΑ","ΑΣΤΟΧΙΑ") -> ΑΣΦΑΛΕΙΑ
A44: Σημείωση: Το λογιστικό αυτό φύλλο περιέχει macros δηλ. ενσωματωμένα προγράμματα Visual Basic που χρησιμοποιούνται για αυτόματους υπολογισμούς. Επομένως πρέπει πάντα να επιτρέπεται από τον χρήστη η χρήση των macros. Η επιλογή αυτή γίνεται στο Tools-Macro-Security | H44: Σημείωση: Το λογιστικό αυτό φύλλο περιέχει macros δηλ. ενσωματωμένα προγράμματα Visual Basic που χρησιμοποιούνται για αυτόματους υπολογισμούς. Επομένως πρέπει πάντα να επιτρέπεται από τον χρήστη η χρήση των macros. Η επιλογή αυτή γίνεται στο Tools-Macro-Security

Sheet Sheet2

Sheet Sheet3

Sheet Sheet4

Sheet Sheet5

Sheet Sheet6

Sheet Sheet7

Sheet Sheet8

Sheet Sheet9

Sheet Sheet10

Sheet Sheet11

Sheet Sheet12

Sheet Sheet13

Sheet Sheet14

Sheet Sheet15

Sheet Sheet16
